[Event "*** Titled Tuesday Blitz"]
[Site "Chess.com"]
[Date "2018.05.01"]
[Round "2"]
[White "Manukyan_Artak"]
[Black "Pudor"]
[Result "0-1"]
[WhiteElo "2360"]
[BlackElo "2220"]
[TimeControl "180+2"]
[EndTime "13:21:23 PDT"]
[Termination "Pudor won by resignation"]

1. e4 {[%clk 0:03:01.9]} 1... c5 {[%clk 0:02:57.9]} 2. Nf3 {[%clk 0:03:02.5]}
2... Nc6 {[%clk 0:02:58.6]} 3. c3 {[%clk 0:03:02.9]} 3... Nf6 {[%clk 0:02:59.2]}
4. e5 {[%clk 0:03:04]} 4... Nd5 {[%clk 0:03:00.1]} 5. d4 {[%clk 0:03:05.9]} 5...
cxd4 {[%clk 0:03:01.1]} 6. cxd4 {[%clk 0:03:07.8]} 6... d6 {[%clk 0:03:01.8]} 7.
Nc3 {[%clk 0:03:08.5]} 7... dxe5 {[%clk 0:02:55.9]} 8. dxe5 {[%clk 0:03:09]}
8... Nxc3 {[%clk 0:02:56.8]} 9. Qxd8+ {[%clk 0:03:10.5]} 9... Nxd8 {[%clk
0:02:57.8]} 10. bxc3 {[%clk 0:03:12.4]} 10... Bd7 {[%clk 0:02:57]} 11. Nd4
{[%clk 0:03:13.1]} 11... Nc6 {[%clk 0:02:46]} 12. f4 {[%clk 0:03:12.6]} 12... e6
{[%clk 0:02:42.6]} 13. Be3 {[%clk 0:03:06.4]} 13... O-O-O {[%clk 0:02:38.3]} 14.
Nxc6 {[%clk 0:02:45.1]} 14... Bxc6 {[%clk 0:02:33.1]} 15. Bxa7 {[%clk 0:02:46]}
15... Ba3 {[%clk 0:02:23.3]} 16. Bd4 {[%clk 0:02:25.5]} 16... Be4 {[%clk
0:01:52.6]} 17. Kd2 {[%clk 0:02:10.3]} 17... Rhg8 {[%clk 0:01:45.5]} 18. Ke3
{[%clk 0:01:57.9]} 18... Bc6 {[%clk 0:01:41.6]} 19. h4 {[%clk 0:01:52.7]} 19...
h6 {[%clk 0:01:34.2]} 20. Rh3 {[%clk 0:01:37.3]} 20... g5 {[%clk 0:01:24.9]} 21.
fxg5 {[%clk 0:01:36.8]} 21... hxg5 {[%clk 0:01:26.8]} 22. h5 {[%clk 0:01:38]}
22... g4 {[%clk 0:01:24]} 23. Rh1 {[%clk 0:01:13.1]} 23... Rg5 {[%clk
0:00:54.2]} 24. h6 {[%clk 0:01:00.4]} 24... Rh8 {[%clk 0:00:46.7]} 25. h7 {[%clk
0:00:49.9]} 25... Rg7 {[%clk 0:00:45.6]} 26. Bd3 {[%clk 0:00:50.1]} 26... Bxg2
{[%clk 0:00:46.4]} 27. Rh6 {[%clk 0:00:50.3]} 27... g3 {[%clk 0:00:38.8]} 28.
Rg1 {[%clk 0:00:48]} 28... Bd5 {[%clk 0:00:35.5]} 29. Kf4 {[%clk 0:00:49]} 29...
Bxa2 {[%clk 0:00:33.2]} 30. Rxg3 {[%clk 0:00:49.3]} 30... Bc1+ {[%clk
0:00:33.7]} 31. Be3 {[%clk 0:00:47.5]} 31... Rxg3 {[%clk 0:00:30.6]} 32. Bxc1
{[%clk 0:00:47.3]} 32... Rxd3 {[%clk 0:00:28.3]} 33. Kg5 {[%clk 0:00:45.6]}
33... Bb1 {[%clk 0:00:24.9]} 34. Kf6 {[%clk 0:00:45.3]} 34... Rg3 {[%clk
0:00:22]} 35. Kxf7 {[%clk 0:00:39.7]} 35... Rxh7+ {[%clk 0:00:22.4]} 36. Rxh7
{[%clk 0:00:40.5]} 36... Bxh7 {[%clk 0:00:24.3]} 37. Kxe6 {[%clk 0:00:42.3]}
37... Bg8+ {[%clk 0:00:25.5]} 38. Kd6 {[%clk 0:00:43.3]} 38... Rd3+ {[%clk
0:00:25]} 39. Ke7 {[%clk 0:00:43.7]} 39... Rxc3 {[%clk 0:00:25.5]} 40. Bg5
{[%clk 0:00:44.6]} 40... Rc6 {[%clk 0:00:26]} 41. Bf6 {[%clk 0:00:44.3]} 41...
Be6 {[%clk 0:00:26.1]} 42. Bg5 {[%clk 0:00:41.6]} 42... b5 {[%clk 0:00:26.8]}
43. Bd2 {[%clk 0:00:43.1]} 43... Ba2 {[%clk 0:00:26.3]} 44. Bb4 {[%clk
0:00:43.9]} 44... Re6+ {[%clk 0:00:26.8]} 0-1

[Event "*** Titled Tuesday Blitz"]
[Site "Chess.com"]
[Date "2018.05.01"]
[Round "2"]
[White "Maitreia"]
[Black "sergeikim"]
[Result "0-1"]
[WhiteElo "2518"]
[BlackElo "2352"]
[TimeControl "180+2"]
[EndTime "13:21:24 PDT"]
[Termination "sergeikim won by checkmate"]

1. c4 {[%clk 0:03:01]} 1... e5 {[%clk 0:02:59]} 2. g3 {[%clk 0:03:00.7]} 2...
Nc6 {[%clk 0:02:59.8]} 3. Bg2 {[%clk 0:03:01.5]} 3... Nf6 {[%clk 0:03:00.8]} 4.
Nf3 {[%clk 0:03:01.2]} 4... g6 {[%clk 0:02:58]} 5. Nc3 {[%clk 0:03:01.3]} 5...
Bg7 {[%clk 0:02:58.5]} 6. O-O {[%clk 0:03:02.9]} 6... O-O {[%clk 0:02:59.3]} 7.
d3 {[%clk 0:03:04.3]} 7... d6 {[%clk 0:02:56.9]} 8. Rb1 {[%clk 0:03:04.9]} 8...
Nh5 {[%clk 0:02:57.5]} 9. b4 {[%clk 0:03:05.1]} 9... f5 {[%clk 0:02:58.2]} 10.
b5 {[%clk 0:03:06.4]} 10... Ne7 {[%clk 0:02:58.5]} 11. Bb2 {[%clk 0:03:06]}
11... f4 {[%clk 0:02:58.8]} 12. a4 {[%clk 0:03:06]} 12... h6 {[%clk 0:02:59.1]}
13. a5 {[%clk 0:03:06.8]} 13... Rb8 {[%clk 0:03:00]} 14. Qb3 {[%clk 0:03:06.9]}
14... Kh7 {[%clk 0:02:51.7]} 15. Nd5 {[%clk 0:03:03.4]} 15... g5 {[%clk
0:02:37.5]} 16. Nd2 {[%clk 0:02:56.2]} 16... Be6 {[%clk 0:02:30.1]} 17. b6
{[%clk 0:02:54.6]} 17... axb6 {[%clk 0:02:29.7]} 18. axb6 {[%clk 0:02:56.5]}
18... c6 {[%clk 0:02:26.9]} 19. Nc7 {[%clk 0:02:57.6]} 19... Bg4 {[%clk
0:02:12.5]} 20. Bf3 {[%clk 0:02:55.2]} 20... Qd7 {[%clk 0:02:12.2]} 21. Bxg4
{[%clk 0:02:45]} 21... Qxg4 {[%clk 0:02:11.9]} 22. f3 {[%clk 0:02:46.7]} 22...
Qd7 {[%clk 0:02:11.6]} 23. g4 {[%clk 0:02:48]} 23... Nf6 {[%clk 0:02:11.7]} 24.
Ne4 {[%clk 0:02:48.3]} 24... Ng6 {[%clk 0:02:03.2]} 25. Kh1 {[%clk 0:02:36.2]}
25... Ne8 {[%clk 0:01:54.5]} 26. Nxe8 {[%clk 0:02:31.3]} 26... Rfxe8 {[%clk
0:01:48.4]} 27. Ra1 {[%clk 0:02:32.1]} 27... d5 {[%clk 0:01:45.4]} 28. cxd5
{[%clk 0:02:32.6]} 28... cxd5 {[%clk 0:01:46.2]} 29. Nc3 {[%clk 0:02:19.5]}
29... Rbd8 {[%clk 0:01:37.5]} 30. Ra7 {[%clk 0:02:15.1]} 30... Re7 {[%clk
0:01:34.9]} 31. Qb5 {[%clk 0:02:12.5]} 31... Qe6 {[%clk 0:01:32.8]} 32. Rc1
{[%clk 0:02:04.5]} 32... e4 {[%clk 0:01:22.4]} 33. dxe4 {[%clk 0:02:04.9]} 33...
Bxc3 {[%clk 0:01:18.9]} 34. Bxc3 {[%clk 0:02:03.6]} 34... dxe4 {[%clk
0:01:19.7]} 35. Qf5 {[%clk 0:02:03.4]} 35... exf3 {[%clk 0:01:08.9]} 36. Qxe6
{[%clk 0:01:59.3]} 36... Rxe6 {[%clk 0:01:09.2]} 37. Rxb7+ {[%clk 0:01:59.8]}
37... Ne7 {[%clk 0:01:09.4]} 38. exf3 {[%clk 0:01:58.6]} 38... Kg6 {[%clk
0:01:08.4]} 39. Rc2 {[%clk 0:01:41.7]} 39... h5 {[%clk 0:00:58.5]} 40. h3 {[%clk
0:01:37.4]} 40... hxg4 {[%clk 0:00:56.2]} 41. hxg4 {[%clk 0:01:39.3]} 41... Rd1+
{[%clk 0:00:52.6]} 42. Kg2 {[%clk 0:01:39.3]} 42... Nd5 {[%clk 0:00:53.4]} 43.
Rg7+ {[%clk 0:01:21.6]} 43... Kh6 {[%clk 0:00:54.2]} 44. b7 {[%clk 0:01:21.7]}
44... Rb1 {[%clk 0:00:40.7]} 45. Bd4 {[%clk 0:01:18.4]} 45... Ne3+ {[%clk
0:00:38.3]} 46. Bxe3 {[%clk 0:01:16.7]} 46... Kxg7 {[%clk 0:00:38.4]} 47. Bd4+
{[%clk 0:01:17.1]} 47... Kg6 {[%clk 0:00:37.3]} 48. Bb2 {[%clk 0:01:08.6]} 48...
Rb6 {[%clk 0:00:30.4]} 49. Rc6+ {[%clk 0:00:52]} 49... Rxc6 {[%clk 0:00:31.1]}
50. b8=Q {[%clk 0:00:49.9]} 50... Rc2+ {[%clk 0:00:31.5]} 51. Kh3 {[%clk
0:00:50.8]} 51... Rh1# {[%clk 0:00:31.3]} 0-1

[Event "*** Titled Tuesday Blitz"]
[Site "Chess.com"]
[Date "2018.05.01"]
[Round "2"]
[White "RodinMihail"]
[Black "Mbneu"]
[Result "1/2-1/2"]
[WhiteElo "2420"]
[BlackElo "2284"]
[TimeControl "180+2"]
[EndTime "13:21:24 PDT"]
[Termination "Game drawn - insufficient material"]

1. e4 {[%clk 0:03:01.9]} 1... e5 {[%clk 0:03:00.1]} 2. Nf3 {[%clk 0:03:01.8]}
2... Nc6 {[%clk 0:03:00.8]} 3. Nc3 {[%clk 0:03:03]} 3... d6 {[%clk 0:02:57.2]}
4. d4 {[%clk 0:03:04.3]} 4... Bg4 {[%clk 0:02:54.3]} 5. Bb5 {[%clk 0:03:03]}
5... a6 {[%clk 0:02:54.2]} 6. Bxc6+ {[%clk 0:03:03.3]} 6... bxc6 {[%clk
0:02:52.9]} 7. dxe5 {[%clk 0:03:04]} 7... Bxf3 {[%clk 0:02:53.3]} 8. Qxf3 {[%clk
0:03:04.1]} 8... dxe5 {[%clk 0:02:54.3]} 9. Qg3 {[%clk 0:03:03.4]} 9... Qf6
{[%clk 0:02:51.3]} 10. O-O {[%clk 0:02:55.7]} 10... Bd6 {[%clk 0:02:50.8]} 11.
Nd1 {[%clk 0:02:49.5]} 11... Ne7 {[%clk 0:02:49.5]} 12. Ne3 {[%clk 0:02:44.8]}
12... Ng6 {[%clk 0:02:49.2]} 13. Nf5 {[%clk 0:02:44.3]} 13... O-O {[%clk
0:02:49.4]} 14. c4 {[%clk 0:02:38.8]} 14... Rfd8 {[%clk 0:02:43.9]} 15. Bg5
{[%clk 0:02:38.6]} 15... Qe6 {[%clk 0:02:42.4]} 16. Bxd8 {[%clk 0:02:39.4]}
16... Rxd8 {[%clk 0:02:42]} 17. b3 {[%clk 0:02:40.9]} 17... Bf8 {[%clk
0:02:38.9]} 18. Rad1 {[%clk 0:02:39.4]} 18... Ra8 {[%clk 0:02:33.2]} 19. Rd2
{[%clk 0:02:34.4]} 19... Nf4 {[%clk 0:02:31.2]} 20. Rfd1 {[%clk 0:02:34.9]}
20... g6 {[%clk 0:02:31.8]} 21. Ne3 {[%clk 0:02:22.2]} 21... Be7 {[%clk
0:02:31.3]} 22. Qf3 {[%clk 0:02:19.7]} 22... Kg7 {[%clk 0:02:31.2]} 23. Qg4
{[%clk 0:02:17.9]} 23... Qf6 {[%clk 0:02:25.9]} 24. Nf5+ {[%clk 0:02:14.5]}
24... Kf8 {[%clk 0:02:21.3]} 25. Nxe7 {[%clk 0:02:15.3]} 25... Qxe7 {[%clk
0:02:19.7]} 26. g3 {[%clk 0:02:12.3]} 26... Ne6 {[%clk 0:02:19.4]} 27. Qf3
{[%clk 0:02:08.6]} 27... Nd4 {[%clk 0:02:18.6]} 28. Qe3 {[%clk 0:02:08.4]} 28...
c5 {[%clk 0:02:19.4]} 29. a3 {[%clk 0:02:01.1]} 29... a5 {[%clk 0:02:19.1]} 30.
f4 {[%clk 0:02:00.1]} 30... Re8 {[%clk 0:02:17.9]} 31. f5 {[%clk 0:01:57.2]}
31... gxf5 {[%clk 0:02:18.1]} 32. exf5 {[%clk 0:01:52.1]} 32... Nxf5 {[%clk
0:02:19.1]} 33. Qc3 {[%clk 0:01:48.3]} 33... Nd4 {[%clk 0:02:18.6]} 34. Rf2
{[%clk 0:01:49]} 34... e4 {[%clk 0:02:16.6]} 35. Qe3 {[%clk 0:01:39.2]} 35... f5
{[%clk 0:02:12.9]} 36. b4 {[%clk 0:01:31.3]} 36... axb4 {[%clk 0:02:08.1]} 37.
axb4 {[%clk 0:01:32]} 37... Nf3+ {[%clk 0:02:07.1]} 38. Kg2 {[%clk 0:01:32.7]}
38... cxb4 {[%clk 0:02:04.6]} 39. Rd5 {[%clk 0:01:32.9]} 39... Qf6 {[%clk
0:02:00.2]} 40. Qf4 {[%clk 0:01:31]} 40... Re5 {[%clk 0:01:56.2]} 41. Rd7 {[%clk
0:01:30.6]} 41... Kg8 {[%clk 0:01:47.1]} 42. Rxc7 {[%clk 0:01:30.5]} 42... Qd6
{[%clk 0:01:44.1]} 43. Rc8+ {[%clk 0:01:25.8]} 43... Kf7 {[%clk 0:01:44.3]} 44.
c5 {[%clk 0:01:11.3]} 44... Qd1 {[%clk 0:01:44.1]} 45. Rc7+ {[%clk 0:01:05.5]}
45... Ke8 {[%clk 0:01:44]} 46. Rxf3 {[%clk 0:01:00.7]} 46... exf3+ {[%clk
0:01:43.9]} 47. Kh3 {[%clk 0:01:02.2]} 47... Qf1+ {[%clk 0:01:30.3]} 48. Kh4
{[%clk 0:01:02.8]} 48... Re7 {[%clk 0:01:26.8]} 49. Rc8+ {[%clk 0:01:00.9]}
49... Kd7 {[%clk 0:01:27.4]} 50. Qxf5+ {[%clk 0:01:02]} 50... Re6 {[%clk
0:01:25.7]} 51. Rf8 {[%clk 0:00:59.8]} 51... Qe2 {[%clk 0:01:24]} 52. Rf7+
{[%clk 0:00:58.7]} 52... Kc6 {[%clk 0:01:25]} 53. Qxf3+ {[%clk 0:00:59]} 53...
Qxf3 {[%clk 0:01:20.2]} 54. Rxf3 {[%clk 0:01:00.9]} 54... Kxc5 {[%clk
0:01:21.6]} 55. Rf7 {[%clk 0:00:58.9]} 55... h6 {[%clk 0:01:21.5]} 56. Kh5
{[%clk 0:00:59.5]} 56... b3 {[%clk 0:01:15.1]} 57. Rf1 {[%clk 0:00:59.8]} 57...
Kc4 {[%clk 0:01:15.3]} 58. g4 {[%clk 0:01:00.9]} 58... Kc3 {[%clk 0:01:14.8]}
59. h4 {[%clk 0:01:02.1]} 59... b2 {[%clk 0:01:15.5]} 60. g5 {[%clk 0:01:03.1]}
60... hxg5 {[%clk 0:01:16.7]} 61. hxg5 {[%clk 0:01:04.9]} 61... Kc2 {[%clk
0:01:16]} 62. g6 {[%clk 0:01:05.2]} 62... Rxg6 {[%clk 0:01:15.4]} 63. Kxg6
{[%clk 0:01:05.7]} 63... b1=Q {[%clk 0:01:17]} 64. Rxb1 {[%clk 0:01:06.6]} 64...
Kxb1 {[%clk 0:01:17.4]} 1/2-1/2

[Event "*** Titled Tuesday Blitz"]
[Site "Chess.com"]
[Date "2018.05.01"]
[Round "2"]
[White "Storne89"]
[Black "penguingm1"]
[Result "0-1"]
[WhiteElo "2526"]
[BlackElo "2753"]
[TimeControl "180+2"]
[EndTime "13:21:25 PDT"]
[Termination "penguingm1 won by resignation"]

1. e4 {[%clk 0:03:01.9]} 1... e5 {[%clk 0:02:58.3]} 2. Nf3 {[%clk 0:03:02.6]}
2... Nc6 {[%clk 0:02:58.8]} 3. Bc4 {[%clk 0:03:03.6]} 3... Bc5 {[%clk
0:02:59.2]} 4. d3 {[%clk 0:03:04.1]} 4... Nf6 {[%clk 0:02:59.3]} 5. O-O {[%clk
0:03:04.6]} 5... a6 {[%clk 0:02:55.7]} 6. c3 {[%clk 0:03:04.6]} 6... Ba7 {[%clk
0:02:55.3]} 7. Bb3 {[%clk 0:03:05.6]} 7... d6 {[%clk 0:02:55]} 8. Nbd2 {[%clk
0:03:05.7]} 8... O-O {[%clk 0:02:56]} 9. h3 {[%clk 0:03:05.7]} 9... h6 {[%clk
0:02:56.1]} 10. Re1 {[%clk 0:03:06.6]} 10... Re8 {[%clk 0:02:57.1]} 11. Nf1
{[%clk 0:03:06.8]} 11... Be6 {[%clk 0:02:58.5]} 12. Bc2 {[%clk 0:03:07.9]} 12...
d5 {[%clk 0:02:57.4]} 13. exd5 {[%clk 0:03:09.2]} 13... Bxd5 {[%clk 0:02:57.7]}
14. Ng3 {[%clk 0:03:08.2]} 14... Qd6 {[%clk 0:02:58]} 15. Be3 {[%clk 0:03:04.7]}
15... Bxe3 {[%clk 0:02:33]} 16. Rxe3 {[%clk 0:03:04.7]} 16... Rad8 {[%clk
0:02:34.3]} 17. Qe2 {[%clk 0:03:00.4]} 17... b5 {[%clk 0:02:29.1]} 18. Re1
{[%clk 0:02:59.8]} 18... g6 {[%clk 0:01:40]} 19. Nd2 {[%clk 0:02:21.7]} 19...
Kg7 {[%clk 0:01:32.4]} 20. a3 {[%clk 0:02:11.2]} 20... h5 {[%clk 0:01:25.6]} 21.
Nge4 {[%clk 0:02:08.7]} 21... Nxe4 {[%clk 0:01:15.8]} 22. Nxe4 {[%clk
0:02:09.9]} 22... Qe7 {[%clk 0:01:16.7]} 23. Nd2 {[%clk 0:01:42]} 23... f5
{[%clk 0:01:03.3]} 24. f4 {[%clk 0:01:35.6]} 24... Qh4 {[%clk 0:00:42.1]} 25.
fxe5 {[%clk 0:01:19.7]} 25... f4 {[%clk 0:00:38.1]} 26. Nf3 {[%clk 0:01:20.8]}
26... Bxf3 {[%clk 0:00:20.6]} 27. Rxf3 {[%clk 0:01:21.1]} 27... Nxe5 {[%clk
0:00:13.4]} 28. Qxe5+ {[%clk 0:00:50.8]} 28... Rxe5 {[%clk 0:00:14.1]} 29. Rxe5
{[%clk 0:00:52.7]} 29... g5 {[%clk 0:00:13.6]} 30. d4 {[%clk 0:00:52.6]} 30...
Rf8 {[%clk 0:00:14.4]} 31. Re4 {[%clk 0:00:42.1]} 31... g4 {[%clk 0:00:14.1]}
32. Rfxf4 {[%clk 0:00:30.5]} 32... Rxf4 {[%clk 0:00:14.7]} 33. Rxf4 {[%clk
0:00:32.4]} 33... Qe1+ {[%clk 0:00:12.6]} 34. Rf1 {[%clk 0:00:33.6]} 34... Qe3+
{[%clk 0:00:13.9]} 35. Kh1 {[%clk 0:00:21.5]} 35... Qe2 {[%clk 0:00:11.5]} 0-1

[Event "*** Titled Tuesday Blitz"]
[Site "Chess.com"]
[Date "2018.05.01"]
[Round "2"]
[White "Morshynska"]
[Black "lolo9292"]
[Result "0-1"]
[WhiteElo "2062"]
[BlackElo "1797"]
[TimeControl "180+2"]
[EndTime "13:21:29 PDT"]
[Termination "lolo9292 won by resignation"]

1. d4 {[%clk 0:03:01.9]} 1... Nf6 {[%clk 0:03:00.8]} 2. c4 {[%clk 0:03:02]} 2...
e6 {[%clk 0:03:02.2]} 3. Nf3 {[%clk 0:03:01.2]} 3... Bb4+ {[%clk 0:03:03.4]} 4.
Nbd2 {[%clk 0:02:58.2]} 4... Kf8 {[%clk 0:03:03.2]} 5. a3 {[%clk 0:02:56.8]}
5... Be7 {[%clk 0:03:03.4]} 6. e4 {[%clk 0:02:55.7]} 6... d5 {[%clk 0:03:03]} 7.
e5 {[%clk 0:02:53.2]} 7... Ne4 {[%clk 0:03:04]} 8. Bd3 {[%clk 0:02:45.4]} 8...
Nxd2 {[%clk 0:03:01.9]} 9. Bxd2 {[%clk 0:02:47.3]} 9... dxc4 {[%clk 0:03:02]}
10. Bxc4 {[%clk 0:02:48.8]} 10... b6 {[%clk 0:03:03.1]} 11. O-O {[%clk
0:02:43.6]} 11... Bb7 {[%clk 0:03:04.1]} 12. Be3 {[%clk 0:02:42.2]} 12... g5
{[%clk 0:02:59.8]} 13. Rc1 {[%clk 0:02:32.4]} 13... h5 {[%clk 0:02:55.2]} 14.
Ne1 {[%clk 0:02:28.1]} 14... g4 {[%clk 0:02:55.4]} 15. f3 {[%clk 0:02:19.8]}
15... gxf3 {[%clk 0:02:50.9]} 16. Nxf3 {[%clk 0:02:21.7]} 16... Ke8 {[%clk
0:02:51.7]} 17. Qd2 {[%clk 0:02:14.4]} 17... Rg8 {[%clk 0:02:51]} 18. Qc2 {[%clk
0:01:58.9]} 18... Rg6 {[%clk 0:02:42.7]} 19. Bb5+ {[%clk 0:01:53.7]} 19... c6
{[%clk 0:02:35.4]} 20. Bd3 {[%clk 0:01:49.9]} 20... Rg4 {[%clk 0:02:34.7]} 21.
h3 {[%clk 0:01:45.7]} 21... Rg3 {[%clk 0:02:33.9]} 22. Bf4 {[%clk 0:01:37.5]}
22... Rg7 {[%clk 0:02:33.4]} 23. Be4 {[%clk 0:01:34.9]} 23... Nd7 {[%clk
0:02:29.8]} 24. b4 {[%clk 0:01:10.3]} 24... Rc8 {[%clk 0:02:26.4]} 25. Rf2
{[%clk 0:01:01.6]} 25... b5 {[%clk 0:02:19.7]} 26. Rcf1 {[%clk 0:00:59.6]} 26...
Qb6 {[%clk 0:02:19.4]} 27. Bh6 {[%clk 0:00:54.6]} 27... Rg8 {[%clk 0:02:18.6]}
28. Kh1 {[%clk 0:00:52.7]} 28... a5 {[%clk 0:02:13.2]} 29. Qd2 {[%clk 0:00:51]}
29... axb4 {[%clk 0:02:13.5]} 30. axb4 {[%clk 0:00:52.9]} 30... h4 {[%clk
0:02:11.9]} 31. Ng5 {[%clk 0:00:52.2]} 31... f5 {[%clk 0:02:05.2]} 32. Bf3
{[%clk 0:00:24.7]} 32... Nf8 {[%clk 0:01:54.2]} 33. Bxf8 {[%clk 0:00:18.9]}
33... Bxg5 {[%clk 0:01:54.2]} 34. Bh5+ {[%clk 0:00:12.7]} 34... Kxf8 {[%clk
0:01:54.2]} 35. Qa2 {[%clk 0:00:14.6]} 35... Ke7 {[%clk 0:01:50.5]} 36. Rxf5
{[%clk 0:00:12.4]} 36... exf5 {[%clk 0:01:50.8]} 37. Qf7+ {[%clk 0:00:12.3]}
37... Kd8 {[%clk 0:01:50.4]} 38. Qxg8+ {[%clk 0:00:13.3]} 38... Kc7 {[%clk
0:01:51.7]} 39. Qf7+ {[%clk 0:00:13.6]} 39... Kb8 {[%clk 0:01:45.1]} 40. Qxf5
{[%clk 0:00:15.5]} 40... Be3 {[%clk 0:01:42.4]} 41. Qe4 {[%clk 0:00:15.4]} 41...
Qxd4 {[%clk 0:01:42.1]} 42. Qf5 {[%clk 0:00:15.8]} 42... c5 {[%clk 0:01:41.1]}
43. e6 {[%clk 0:00:16.6]} 43... Qd2 {[%clk 0:01:41.2]} 44. Bf3 {[%clk
0:00:17.1]} 44... c4 {[%clk 0:01:37.8]} 45. Bxb7 {[%clk 0:00:17]} 45... Kxb7
{[%clk 0:01:37.2]} 46. Qe4+ {[%clk 0:00:18.9]} 46... Kb8 {[%clk 0:01:35.7]} 47.
Ra1 {[%clk 0:00:20.4]} 47... Qd4 {[%clk 0:01:30]} 48. Ra8+ {[%clk 0:00:19.7]}
48... Kc7 {[%clk 0:01:31.2]} 49. Rxc8+ {[%clk 0:00:20]} 49... Kxc8 {[%clk
0:01:31.9]} 50. Qc6+ {[%clk 0:00:18.1]} 50... Kd8 {[%clk 0:01:32]} 51. Qa8+
{[%clk 0:00:14.3]} 51... Ke7 {[%clk 0:01:32.9]} 52. Qb7+ {[%clk 0:00:14.8]}
52... Kxe6 {[%clk 0:01:34.1]} 53. g4 {[%clk 0:00:14.7]} 53... Qd5+ {[%clk
0:01:33.3]} 54. Qxd5+ {[%clk 0:00:14.8]} 54... Kxd5 {[%clk 0:01:34.5]} 55. Kg2
{[%clk 0:00:15.1]} 55... Bg5 {[%clk 0:01:36]} 56. Kf3 {[%clk 0:00:17]} 56... c3
{[%clk 0:01:37.3]} 57. Ke2 {[%clk 0:00:18.2]} 57... c2 {[%clk 0:01:38.9]} 0-1

[Event "*** Titled Tuesday Blitz"]
[Site "Chess.com"]
[Date "2018.05.01"]
[Round "2"]
[White "Fins0905"]
[Black "dretch"]
[Result "1-0"]
[WhiteElo "2565"]
[BlackElo "2669"]
[TimeControl "180+2"]
[EndTime "13:21:34 PDT"]
[Termination "Fins0905 won by resignation"]

1. d4 {[%clk 0:03:01.6]} 1... d5 {[%clk 0:03:00.6]} 2. c4 {[%clk 0:03:01.4]}
2... c6 {[%clk 0:03:01.8]} 3. cxd5 {[%clk 0:03:00.9]} 3... cxd5 {[%clk
0:03:02.8]} 4. Nf3 {[%clk 0:03:02.1]} 4... Nf6 {[%clk 0:03:03.4]} 5. Nc3 {[%clk
0:03:03.6]} 5... Nc6 {[%clk 0:03:03.7]} 6. Bf4 {[%clk 0:03:04.6]} 6... Bf5
{[%clk 0:03:03.7]} 7. e3 {[%clk 0:03:00]} 7... e6 {[%clk 0:03:04]} 8. Qb3 {[%clk
0:02:59.6]} 8... Bb4 {[%clk 0:02:57.2]} 9. Bb5 {[%clk 0:03:00]} 9... Bxc3+
{[%clk 0:02:55.4]} 10. Qxc3 {[%clk 0:02:58.5]} 10... O-O {[%clk 0:02:53.2]} 11.
O-O {[%clk 0:02:42.9]} 11... Rc8 {[%clk 0:02:43.1]} 12. Rfc1 {[%clk 0:02:37.7]}
12... Qb6 {[%clk 0:02:17.5]} 13. Bf1 {[%clk 0:02:29.5]} 13... Ne4 {[%clk
0:02:12.1]} 14. Qa3 {[%clk 0:02:27.2]} 14... Nb4 {[%clk 0:02:05.1]} 15. Qa4
{[%clk 0:02:15.3]} 15... h6 {[%clk 0:01:34.3]} 16. h3 {[%clk 0:02:05.9]} 16...
Nf6 {[%clk 0:01:20.6]} 17. Ne1 {[%clk 0:01:24]} 17... Nc6 {[%clk 0:00:41.8]} 18.
Qa3 {[%clk 0:01:08.5]} 18... Ne4 {[%clk 0:00:24.8]} 19. Nd3 {[%clk 0:01:06.1]}
19... Nd2 {[%clk 0:00:22.3]} 20. Nc5 {[%clk 0:00:59]} 20... Rfe8 {[%clk
0:00:10.3]} 21. Be2 {[%clk 0:00:53.6]} 21... e5 {[%clk 0:00:11.4]} 22. dxe5
{[%clk 0:00:46.8]} 22... Nxe5 {[%clk 0:00:13.3]} 23. Na4 {[%clk 0:00:34.5]}
23... Qd8 {[%clk 0:00:11.9]} 24. Rxc8 {[%clk 0:00:29.5]} 24... Qxc8 {[%clk
0:00:13.1]} 25. Qc3 {[%clk 0:00:27.6]} 25... Qxc3 {[%clk 0:00:11.8]} 26. Nxc3
{[%clk 0:00:29.5]} 26... Ndc4 {[%clk 0:00:09.1]} 27. b3 {[%clk 0:00:19.9]} 27...
Nb6 {[%clk 0:00:08.9]} 28. Rd1 {[%clk 0:00:19.2]} 28... Ng6 {[%clk 0:00:06.7]}
29. Bg3 {[%clk 0:00:17.8]} 29... Be6 {[%clk 0:00:07.4]} 30. Bf3 {[%clk
0:00:17.4]} 30... Ne7 {[%clk 0:00:08.2]} 31. Nb5 {[%clk 0:00:16.7]} 31... a6
{[%clk 0:00:09.4]} 32. Nd6 {[%clk 0:00:17.4]} 32... Ra8 {[%clk 0:00:07.8]} 33.
Nxb7 {[%clk 0:00:18]} 33... a5 {[%clk 0:00:08.5]} 34. Nc5 {[%clk 0:00:19.1]}
34... a4 {[%clk 0:00:09.3]} 35. b4 {[%clk 0:00:20.3]} 35... Nc4 {[%clk
0:00:09.7]} 36. Rc1 {[%clk 0:00:16.4]} 36... Ra7 {[%clk 0:00:09.1]} 37. Be2
{[%clk 0:00:14.5]} 37... Nd2 {[%clk 0:00:05.1]} 38. b5 {[%clk 0:00:14.3]} 38...
Nc4 {[%clk 0:00:03.1]} 39. Bxc4 {[%clk 0:00:13.6]} 39... dxc4 {[%clk 0:00:05]}
40. b6 {[%clk 0:00:14.4]} 40... Ra5 {[%clk 0:00:05.6]} 41. b7 {[%clk 0:00:13.9]}
41... Nc6 {[%clk 0:00:06.2]} 42. Nxe6 {[%clk 0:00:13.7]} 42... fxe6 {[%clk
0:00:07]} 43. Rxc4 {[%clk 0:00:14.3]} 43... Rb5 {[%clk 0:00:07.2]} 44. Rxc6
{[%clk 0:00:15.3]} 44... Rxb7 {[%clk 0:00:08.6]} 45. Rxe6 {[%clk 0:00:14.8]} 1-0